bitfinex/quotes_BTCUSD_20240908
["timestamp","ask_amount","ask_price","bid_price","bid_amount"]
[1725822549167,0.8667775,54619.0,54618.0,0.19283]
[1725822549665,0.9215925,54619.0,54618.0,0.00463]
[1725822549878,1.076918,54619.0,54618.0,0.00463]
[1725822551471,1.022918,54619.0,54618.0,0.00463]
[1725822552144,1.030263,54619.0,54618.0,0.00463]
[1725822553280,1.05897064,54619.0,54618.0,0.00463]
[1725822556642,1.030263,54619.0,54618.0,0.00463]
[1725822565770,0.737325,54619.0,54618.0,0.10813]
[1725822566481,0.737325,54619.0,54618.0,0.19353]
[1725822567397,0.72998,54619.0,54618.0,0.19353]
[1725822567909,1.022918,54619.0,54618.0,0.19353]
[1725822568138,0.72998,54619.0,54618.0,0.19353]
[1725822572623,1.022918,54619.0,54618.0,0.19353]
[1725822574889,0.72998,54619.0,54618.0,0.19353]
[1725822575544,1.022918,54619.0,54618.0,0.19353]
[1725822578504,0.72998,54619.0,54618.0,0.19353]
[1725822579197,0.72998,54619.0,54618.0,0.20212369]
[1725822579406,0.72998,54619.0,54618.0,0.19353]
[1725822579666,0.72998,54619.0,54618.0,0.20212299]
[1725822579873,0.72998,54619.0,54618.0,0.19353]
[1725822580140,0.72998,54619.0,54618.0,0.20212299]
[1725822580369,0.72998,54619.0,54618.0,0.19353]
[1725822582622,0.84425073,54619.0,54618.0,0.19353]
[1725822586182,0.84425038,54619.0,54618.0,0.19353]
[1725822586431,0.73416,54619.0,54618.0,0.19353]
[1725822593091,0.87177892,54619.0,54618.0,0.19353]
[1725822593705,0.73416,54619.0,54618.0,0.19353]
[1725822594543,0.87177902,54619.0,54618.0,0.19353]
[1725822597882,0.441222,54619.0,54618.0,0.19353]
[1725822598340,0.441222,54619.0,54618.0,0.20212259]
[1725822599472,0.55130487,54619.0,54618.0,0.20212259]
[1725822603106,0.55129686,54619.0,54618.0,0.20212259]
[1725822607272,0.05684513,54619.0,54618.0,0.24067205]
[1725822607510,0.05684513,54619.0,54618.0,0.25067205]
[1725822607752,0.001815,54619.0,54618.0,0.25067205]
[1725822608179,0.001815,54619.0,54618.0,0.21412259]
[1725822608599,0.148284,54619.0,54618.0,0.21412259]
[1725822608841,0.001815,54619.0,54618.0,0.21412259]
[1725822609271,0.05683143,54619.0,54618.0,0.21412259]
[1725822610625,0.001815,54619.0,54618.0,0.21412259]
[1725822612176,0.05683143,54619.0,54618.0,0.21412259]
[1725822613246,0.05682131,54619.0,54618.0,0.21412259]
[1725822614508,0.001815,54619.0,54618.0,0.21412259]
[1725822615796,0.148284,54619.0,54618.0,0.21412259]
[1725822616239,0.001815,54619.0,54618.0,0.21412259]
[1725822617126,0.148284,54619.0,54618.0,0.21412259]
[1725822618011,0.148284,54619.0,54618.0,0.21312259]
[1725822618229,0.147284,54619.0,54618.0,0.21512259]
[1725822618687,0.147284,54619.0,54618.0,0.21712259]
[1725822618906,0.147284,54619.0,54618.0,0.21512259]
[1725822619154,0.147284,54619.0,54618.0,0.21912259]
[1725822619598,0.147284,54619.0,54618.0,0.21712259]
[1725822620505,0.148284,54619.0,54618.0,0.22212259]
[1725822622016,0.148284,54619.0,54618.0,0.21112259]
[1725822622231,0.83754549,54619.0,54618.0,0.02222259]
[1725822622767,0.86504865,54619.0,54618.0,0.01363]
[1725822626661,0.81666947,54619.0,54618.0,0.01363]
[1725822627753,1.027098,54619.0,54618.0,0.01363]
[1725822628204,1.13711063,54619.0,54618.0,0.01363]
[1725822630676,1.21971379,54619.0,54618.0,0.01263]
[1725822630901,1.26196076,54619.0,54618.0,0.01263]
[1725822631572,1.26096076,54619.0,54618.0,0.00763]
[1725822631813,1.26096076,54619.0,54618.0,0.00363]
[1725822632905,1.26396076,54619.0,54618.0,0.00563]
[1725822633368,1.26396076,54619.0,54618.0,0.00363]
[1725822633800,1.26696076,54619.0,54618.0,0.00363]
[1725822634239,1.26396076,54619.0,54618.0,0.00363]
[1725822634668,1.26796076,54619.0,54618.0,0.00163]
[1725822635290,1.033098,54619.0,54618.0,0.00163]
[1725822635511,1.1705873,54619.0,54618.0,0.00163]
[1725822635746,1.033098,54619.0,54618.0,0.00163]
[1725822636004,1.17058677,54619.0,54618.0,0.00163]
[1725822637497,1.033098,54619.0,54618.0,0.00163]
[1725822637726,1.19255918,54619.0,54618.0,0.00163]
[1725822638178,1.29255918,54619.0,54618.0,0.00163]
[1725822638696,1.27510219,54619.0,54618.0,0.00163]
[1725822639824,1.27591719,54619.0,54618.0,0.00163]
[1725822640915,1.28326219,54619.0,54618.0,0.00163]
[1725822641119,1.17328357,54619.0,54618.0,0.00163]
[1725822642622,1.0253,54618.0,54617.0,0.00163]
[1725822642842,1.38723317,54618.0,54617.0,0.00163]
[1725822643486,1.27728233,54618.0,54617.0,0.00163]
[1725822643708,1.38723317,54618.0,54617.0,0.00163]
[1725822643915,1.27928233,54618.0,54617.0,0.00163]
[1725822644116,1.38923317,54618.0,54617.0,0.00163]
[1725822644345,1.1273,54618.0,54617.0,0.00163]
[1725822644566,1.1273,54618.0,54617.0,0.09023]
[1725822644778,1.1303,54618.0,54617.0,0.09023]
[1725822645024,1.1303,54618.0,54617.0,0.19893]
[1725822647505,1.21274372,54618.0,54617.0,0.19893]
[1725822648180,1.21274205,54618.0,54617.0,0.19893]
[1725822648615,1.24022274,54618.0,54617.0,0.11033]
[1725822651529,1.3893143,54618.0,54617.0,0.00163]
[1725822651741,1.27939156,54618.0,54617.0,0.00163]
[1725822657553,1.41677656,54618.0,54617.0,0.00163]
[1725822658216,1.41679338,54618.0,54617.0,0.00163]
[1725822659789,1.71873638,54618.0,54617.0,0.00163]
[1725822660001,1.58333456,54618.0,54617.0,0.00163]
[1725822660251,1.63843456,54618.0,54617.0,0.00163]
[1725822660472,1.80331675,54618.0,54617.0,0.00163]
[1725822660704,1.66684581,54618.0,54617.0,0.00163]
[1725822660929,1.66484581,54618.0,54617.0,0.00163]
[1725822661158,1.74734581,54618.0,54617.0,0.00263]
[1725822661391,1.74734581,54618.0,54617.0,0.00363]
[1725822661392,1.75334581,54618.0,54617.0,0.00363]
[1725822661642,1.75334581,54618.0,54605.0,0.1098]
[1725822661643,0.0731,54612.0,54600.0,0.09572742]
[1725822661885,0.0731,54612.0,54600.0,0.00572742]
[1725822661886,0.732585,54601.0,54600.0,0.00572742]
[1725822662117,1.125619,54601.0,54600.0,0.00572742]
[1725822662359,1.23551354,54601.0,54600.0,0.00572742]
[1725822662575,1.125619,54601.0,54600.0,0.00572742]
[1725822662823,0.832585,54601.0,54600.0,0.09572742]
[1725822663012,0.88753089,54601.0,54600.0,0.09572742]
[1725822663536,0.832585,54601.0,54600.0,0.09572742]
[1725822663992,0.88753089,54601.0,54600.0,0.09572742]
[1725822664208,0.91482675,54601.0,54600.0,0.09572742]
[1725822664464,0.85888086,54601.0,54600.0,0.09572742]
[1725822664880,0.85988086,54601.0,54600.0,0.09572742]
[1725822665132,0.91582675,54601.0,54600.0,0.09572742]
[1725822665329,0.86088086,54601.0,54600.0,0.09572742]
[1725822665580,0.85988086,54601.0,54600.0,0.09572742]
[1725822665796,0.86188086,54601.0,54600.0,0.09572742]
[1725822667207,0.86388086,54601.0,54600.0,0.09572742]
[1725822667431,0.85888086,54601.0,54600.0,0.09572742]
[1725822667648,0.86588086,54601.0,54600.0,0.09572742]
[1725822667877,0.96836655,54601.0,54600.0,0.09572742]
[1725822668296,0.86288086,54601.0,54600.0,0.09572742]
[1725822668551,0.86588086,54601.0,54600.0,0.09572742]
[1725822672686,1.18763223,54601.0,54600.0,0.00572742]
[1725822673358,1.26110423,54601.0,54600.0,0.00572742]
[1725822673813,1.25810423,54601.0,54600.0,0.00572742]
[1725822674035,1.26310423,54601.0,54600.0,0.00572742]
[1725822674247,1.27210423,54601.0,54600.0,0.00572742]
[1725822674454,1.26310423,54601.0,54600.0,0.00572742]
[1725822674738,1.25410423,54601.0,54600.0,0.00572742]
[1725822674948,1.27010423,54601.0,54600.0,0.00545752]
[1725822677853,1.02564,54600.0,54599.0,0.00163]
[1725822678080,1.12564,54600.0,54599.0,0.00163]
[1725822678994,1.18054366,54600.0,54599.0,0.00163]
[1725822679252,1.12564,54600.0,54599.0,0.00163]
[1725822679938,1.13264,54600.0,54599.0,0.00163]
[1725822680147,1.13864,54600.0,54599.0,0.00163]
[1725822680378,1.13164,54600.0,54599.0,0.00163]
[1725822680586,1.14264,54600.0,54599.0,0.00163]
[1725822680794,1.27991656,54600.0,54599.0,0.00163]
[1725822681015,1.27391656,54600.0,54599.0,0.00163]
[1725822681300,1.28491656,54600.0,54599.0,0.00163]
[1725822681543,1.29491656,54600.0,54599.0,0.00163]
[1725822682389,1.34975219,54600.0,54599.0,0.00163]
[1725822683089,0.732627,54598.0,54597.0,0.09]
[1725822683292,1.17255558,54598.0,54597.0,0.09]
[1725822684356,1.18855558,54598.0,54597.0,0.09]
[1725822684788,0.73268,54594.0,54593.0,0.1853]
[1725822685018,0.73268,54594.0,54593.0,0.1951218]
[1725822685237,1.025752,54594.0,54593.0,0.1951218]
[1725822685463,1.0544721,54594.0,54593.0,0.1951218]
[1725822685683,1.0544721,54594.0,54593.0,0.1853]
[1725822686121,1.18355477,54594.0,54593.0,0.1853]
[1725822686354,1.18755477,54594.0,54593.0,0.1853]
[1725822686821,1.18755477,54594.0,54593.0,0.1863]
[1725822687037,1.18755477,54594.0,54593.0,0.1853]
[1725822687259,1.18755477,54594.0,54593.0,0.1863]
[1725822687716,1.15883467,54594.0,54593.0,0.1863]
[1725822687940,1.15883467,54594.0,54593.0,0.1853]
[1725822688171,1.16183467,54594.0,54593.0,0.1853]
[1725822690015,1.18906,54594.0,54593.0,0.1853]
[1725822690291,1.18606,54594.0,54593.0,0.1853]
[1725822690526,0.146541,54592.0,54591.0,0.0826]
[1725822690782,0.732707,54592.0,54591.0,0.0826]
[1725822691230,1.02579,54592.0,54591.0,0.0826]
[1725822691876,1.05451201,54592.0,54591.0,0.0826]
[1725822693184,1.05851201,54592.0,54591.0,0.0826]
[1725822694309,1.06351201,54592.0,54591.0,0.0826]
[1725822694785,1.05951201,54592.0,54591.0,0.0826]
[1725822695211,1.06251201,54592.0,54591.0,0.0826]
[1725822696113,1.21222265,54592.0,54591.0,0.0826]
[1725822696331,1.20722265,54592.0,54591.0,0.0826]
[1725822696550,1.21122265,54592.0,54591.0,0.0826]
[1725822698170,1.21122265,54592.0,54591.0,0.08423]
[1725822700336,1.18250064,54592.0,54591.0,0.08423]
[1725822701419,1.23734308,54592.0,54591.0,0.08423]
[1725822702493,1.18250064,54592.0,54591.0,0.08423]
[1725822703552,1.26476431,54592.0,54591.0,0.08423]
[1725822703782,1.03279,54592.0,54591.0,0.08423]
[1725822704245,1.08770438,54592.0,54591.0,0.08423]
[1725822704492,1.03279,54592.0,54591.0,0.08423]
[1725822705137,1.08772555,54592.0,54591.0,0.08423]
[1725822705349,1.14247489,54592.0,54591.0,0.08423]
[1725822706301,1.03279,54592.0,54591.0,0.08423]
[1725822706751,1.14271815,54592.0,54591.0,0.08423]
[1725822706984,1.11523355,54592.0,54591.0,0.08423]
[1725822707217,1.03279,54592.0,54591.0,0.08423]
[1725822707446,1.26146366,54592.0,54591.0,0.00163]
[1725822707706,1.37046366,54592.0,54591.0,0.00163]
[1725822709871,1.36646366,54592.0,54591.0,0.00163]
[1725822710094,1.36346366,54592.0,54591.0,0.00163]
[1725822710316,1.37146366,54592.0,54591.0,0.00163]
[1725822710525,1.36746366,54592.0,54591.0,0.00163]
[1725822710741,1.37546366,54592.0,54591.0,0.00163]
[1725822711170,1.42476366,54592.0,54591.0,0.00163]
[1725822711857,1.42076366,54592.0,54591.0,0.00163]
[1725822712555,1.43976366,54592.0,54591.0,0.00163]
[1725822712976,1.43076366,54592.0,54591.0,0.00163]
[1725822713180,1.43976366,54592.0,54591.0,0.00163]
[1725822713838,1.42076366,54592.0,54591.0,0.00163]
[1725822714735,1.43176366,54592.0,54591.0,0.00163]
[1725822715138,1.44176366,54592.0,54591.0,0.00163]
[1725822715598,1.43176366,54592.0,54591.0,0.00163]
[1725822715827,1.44376366,54592.0,54591.0,0.00163]
[1725822716083,1.43276366,54592.0,54591.0,0.00163]
[1725822716319,1.44576366,54592.0,54591.0,0.00163]
[1725822716545,1.38846366,54592.0,54591.0,0.00163]
[1725822716964,1.36346366,54592.0,54591.0,0.00163]
[1725822717453,1.37546366,54592.0,54591.0,0.00163]
[1725822717702,1.36346366,54592.0,54591.0,0.00163]
[1725822718154,1.37446366,54592.0,54591.0,0.00163]
[1725822718374,1.38546366,54592.0,54591.0,0.00163]
[1725822718857,1.37446366,54592.0,54591.0,0.00163]
[1725822719303,1.38446366,54592.0,54591.0,0.00163]
[1725822720443,1.54937997,54592.0,54591.0,0.00163]
[1725822727299,1.54937997,54592.0,54591.0,0.09233]
[1725822727542,1.32070631,54592.0,54591.0,0.09233]
[1725822727775,1.14679,54592.0,54591.0,0.20053]
[1725822734743,1.13679,54592.0,54591.0,0.20053]
[1725822735126,1.14579,54592.0,54591.0,0.20053]
[1725822735336,1.31090479,54592.0,54591.0,0.20053]
[1725822735500,1.30190479,54592.0,54591.0,0.20053]
[1725822735826,1.29390479,54592.0,54591.0,0.20053]
[1725822736053,1.29990479,54592.0,54591.0,0.20053]
[1725822736258,1.29390479,54592.0,54591.0,0.20053]
[1725822736688,1.29790479,54592.0,54591.0,0.20053]
[1725822737839,1.45031933,54592.0,54591.0,0.20053]
[1725822739364,1.318697,54592.0,54591.0,0.20053]
[1725822740513,1.311697,54592.0,54591.0,0.20053]
[1725822740737,1.320697,54592.0,54591.0,0.20053]
[1725822741400,1.316697,54592.0,54591.0,0.20053]
[1725822741647,1.321697,54592.0,54591.0,0.20053]
[1725822742087,1.311697,54592.0,54591.0,0.20053]
[1725822742312,1.61978,54592.0,54591.0,0.00163]
[1725822742519,1.61378,54592.0,54591.0,0.00163]
[1725822742948,1.61978,54592.0,54591.0,0.00163]
[1725822743605,1.61378,54592.0,54591.0,0.00163]
[1725822744048,1.62778,54592.0,54591.0,0.00163]
[1725822744325,1.46436546,54592.0,54591.0,0.19403]
[1725822744524,1.45936546,54592.0,54591.0,0.19403]
[1725822744950,1.46536546,54592.0,54591.0,0.19403]
[1725822752188,1.64432052,54592.0,54591.0,0.19403]
[1725822752410,1.40450397,54592.0,54591.0,0.19403]
[1725822753552,1.11142097,54592.0,54591.0,0.19403]
[1725822754028,0.81833797,54592.0,54591.0,0.19403]
[1725822754955,0.81233797,54592.0,54591.0,0.19403]
[1725822755180,0.81433797,54592.0,54591.0,0.19403]
[1725822755391,0.80733797,54592.0,54591.0,0.19403]
[1725822755848,0.80833797,54592.0,54591.0,0.19403]
[1725822756089,0.80733797,54592.0,54591.0,0.19403]
[1725822756297,0.89089528,54592.0,54591.0,0.19403]
[1725822756501,0.88889528,54592.0,54591.0,0.19403]
[1725822756921,0.88989528,54592.0,54591.0,0.19403]
[1725822757363,0.88889528,54592.0,54591.0,0.19403]
[1725822757572,0.88971028,54592.0,54591.0,0.19403]
[1725822758212,0.78971028,54592.0,54591.0,0.19403]
[1725822758414,0.7621768,54592.0,54591.0,0.19403]
[1725822760239,0.70715297,54592.0,54591.0,0.19403]
[1725822762161,0.70615297,54592.0,54591.0,0.19403]
[1725822762376,0.76116853,54592.0,54591.0,0.19403]
[1725822762791,0.70615297,54592.0,54591.0,0.19403]
[1725822762991,0.70715297,54592.0,54591.0,0.19403]
[1725822763398,0.76214498,54592.0,54591.0,0.19403]
[1725822763854,0.76314498,54592.0,54591.0,0.19403]
[1725822765333,0.76314029,54592.0,54591.0,0.19403]
[1725822766430,0.47005729,54592.0,54591.0,0.19403]
[1725822766681,0.002815,54592.0,54591.0,0.67504607]
[1725822767173,0.001815,54592.0,54591.0,0.97796616]
[1725822767360,0.001815,54592.0,54591.0,0.68487816]
[1725822768521,0.000815,54592.0,54591.0,0.68487816]
[1725822769176,0.001815,54592.0,54591.0,0.97796616]
[1725822769296,0.002815,54592.0,54591.0,0.97796616]
[1725822769525,0.001815,54592.0,54591.0,0.97796616]
[1725822769755,0.000815,54592.0,54591.0,0.97796616]
[1725822769954,0.002815,54592.0,54591.0,0.97796616]
[1725822770369,0.000815,54592.0,54591.0,0.97796616]
[1725822770768,0.001815,54592.0,54591.0,0.97796616]
[1725822771634,0.000815,54599.0,54598.0,0.650476]
[1725822771855,0.000815,54599.0,54598.0,1.10620086]
[1725822772909,0.001815,54599.0,54598.0,1.10520086]
[1725822773133,0.000815,54599.0,54598.0,1.10520086]
[1725822773597,0.292986,54610.0,54609.0,0.1989]
[1725822773799,0.292986,54610.0,54609.0,0.20770807]
[1725822773800,0.732465,54610.0,54609.0,0.20770807]
[1725822774006,0.732465,54610.0,54609.0,0.20670807]
[1725822775298,0.732465,54610.0,54609.0,0.20570807]
[1725822776132,0.733465,54610.0,54609.0,0.22627888]
[1725822776544,0.074265,54618.0,54611.0,0.01]
[1725822776545,0.292952,54617.0,54611.0,0.01]
[1725822776749,0.074265,54618.0,54611.0,0.01]
[1725822776750,0.439462,54612.0,54611.0,0.008]
[1725822776949,0.439462,54612.0,54611.0,0.006]
[1725822777165,0.146487,54612.0,54611.0,0.12853815]
[1725822777373,0.146487,54612.0,54611.0,0.12753815]
[1725822777623,0.439462,54612.0,54611.0,0.116]
[1725822778847,0.442462,54612.0,54611.0,0.116]
[1725822779256,0.439462,54612.0,54611.0,0.2006]
[1725822779397,0.439462,54612.0,54611.0,0.2016]
[1725822779803,0.439462,54612.0,54611.0,0.2026]
[1725822780260,0.439462,54612.0,54611.0,0.2016]
[1725822780489,0.439462,54612.0,54611.0,0.2026]
[1725822780658,0.439462,54612.0,54611.0,0.21239519]
[1725822781510,0.440277,54612.0,54611.0,0.21239519]
[1725822783013,0.147302,54612.0,54611.0,0.21239519]
[1725822784095,0.147302,54612.0,54611.0,0.25727427]
[1725822784280,0.000815,54612.0,54611.0,0.25727427]
[1725822784839,0.000815,54612.0,54611.0,0.25993612]
[1725822785251,0.000815,54612.0,54611.0,0.25827427]
[1725822785477,0.000815,54612.0,54611.0,0.26127427]
[1725822785921,0.147302,54612.0,54611.0,0.26127427]
[1725822786138,0.147302,54612.0,54611.0,0.21639519]
[1725822788310,0.440277,54612.0,54611.0,0.21639519]
[1725822792916,0.147302,54612.0,54611.0,0.21639519]
[1725822793136,0.000815,54612.0,54611.0,0.21639519]
[1725822793362,0.000815,54612.0,54611.0,0.70093587]
[1725822794073,0.000815,54612.0,54611.0,0.70256587]
[1725822800618,0.000815,54612.0,54611.0,0.40958487]
[1725822800836,0.000815,54612.0,54611.0,0.36451519]
[1725822802739,0.147302,54612.0,54611.0,0.21802519]
[1725822802959,0.440277,54612.0,54611.0,0.21802519]
[1725822811823,0.160369,54612.0,54611.0,0.21802519]
[1725822812069,0.160369,54612.0,54611.0,0.24860877]
[1725822812526,0.453344,54612.0,54611.0,0.24860877]
[1725822817598,0.454159,54612.0,54611.0,0.24860877]
[1725822818520,0.161184,54612.0,54611.0,0.24860877]
[1725822821095,0.747134,54612.0,54611.0,0.01742519]
[1725822821342,0.53658985,54612.0,54611.0,0.01742519]
[1725822821595,0.747134,54612.0,54611.0,0.00763]
[1725822822050,0.88451875,54612.0,54611.0,0.00763]
[1725822822286,0.747134,54612.0,54611.0,0.00463]
[1725822822512,0.750134,54612.0,54611.0,0.00163]
[1725822822956,0.753134,54612.0,54611.0,0.00163]
[1725822823243,0.753134,54612.0,54611.0,0.00363]
[1725822823479,0.88773528,54612.0,54611.0,0.00363]
[1725822823749,0.88773528,54612.0,54611.0,0.00563]
[1725822825302,0.88773528,54612.0,54611.0,0.00536]
[1725822825966,0.88772145,54612.0,54611.0,0.00536]
[1725822826665,0.88771549,54612.0,54611.0,0.00536]
[1725822828274,0.750134,54612.0,54611.0,0.00536]
[1725822829205,0.88771549,54612.0,54611.0,0.00536]
[1725822829427,0.88771549,54612.0,54611.0,0.00136]
[1725822829428,0.88471549,54612.0,54611.0,0.00136]
[1725822829651,0.88671549,54612.0,54611.0,0.00136]
[1725822829872,0.88771549,54612.0,54611.0,0.00136]
[1725822830315,0.88871549,54612.0,54611.0,0.00136]
[1725822830506,0.88971549,54612.0,54611.0,0.00136]
[1725822832671,0.751134,54612.0,54611.0,0.00136]
[1725822832911,0.86117722,54612.0,54611.0,0.00136]
[1725822833127,0.85817712,54612.0,54611.0,0.00136]
[1725822833614,0.747134,54612.0,54611.0,0.00136]
[1725822833803,0.88771549,54612.0,54611.0,0.00136]
[1725822834274,0.88571549,54612.0,54611.0,0.00136]
[1725822834496,0.88771549,54612.0,54611.0,0.00136]
[1725822834717,0.750134,54612.0,54611.0,0.00136]
[1725822834945,0.88771549,54612.0,54611.0,0.08526]
[1725822836552,0.750134,54612.0,54611.0,0.08526]
[1725822837454,0.749134,54612.0,54611.0,0.08526]
[1725822837687,0.88771549,54612.0,54611.0,0.08526]
[1725822837873,0.750134,54612.0,54611.0,0.08526]
[1725822838820,0.748134,54612.0,54611.0,0.08526]
[1725822839081,0.747134,54612.0,54611.0,0.08526]
[1725822839318,0.748134,54612.0,54611.0,0.08526]
[1725822839502,0.88571549,54612.0,54611.0,0.08526]
[1725822839755,0.88567313,54612.0,54611.0,0.08526]
[1725822840671,0.748134,54612.0,54611.0,0.08526]
[1725822842060,0.05682658,54612.0,54611.0,0.22857706]
[1725822842299,0.001815,54612.0,54611.0,0.22857706]
[1725822842515,0.001815,54612.0,54611.0,0.20963959]
[1725822843209,0.000815,54612.0,54611.0,0.20963959]
[1725822843441,0.000815,54612.0,54611.0,0.21463959]
[1725822843672,0.001815,54612.0,54611.0,0.21963959]
[1725822843889,0.000815,54612.0,54611.0,0.21463959]
[1725822844156,0.001815,54612.0,54611.0,0.21463959]
[1725822844381,0.002815,54612.0,54611.0,0.22263959]
[1725822845970,0.002815,54612.0,54611.0,0.36912959]
[1725822846198,0.002815,54612.0,54611.0,0.47342221]
[1725822846445,0.002815,54612.0,54611.0,0.32693221]
[1725822848349,0.002815,54612.0,54611.0,0.22263959]
[1725822848576,0.002815,54612.0,54611.0,0.31045024]
[1725822864315,0.735252,54612.0,54611.0,0.02913959]
[1725822864539,0.49727617,54612.0,54611.0,0.02913959]
[1725822864761,0.49727617,54612.0,54611.0,0.01936]
[1725822864982,0.49727587,54612.0,54611.0,0.02913658]
[1725822865199,0.442277,54612.0,54611.0,0.02913658]
[1725822865439,0.442277,54612.0,54611.0,0.01936]
[1725822865676,0.442277,54612.0,54611.0,0.02913658]
[1725822865677,0.440192,54612.0,54611.0,0.02913658]
[1725822865921,0.49519076,54612.0,54611.0,0.02913658]
[1725822866149,0.81566892,54612.0,54611.0,0.02413658]
[1725822866593,0.733167,54612.0,54611.0,0.01436]
[1725822872998,0.733167,54612.0,54611.0,0.00748266]
[1725822875688,0.733167,54612.0,54611.0,0.00911266]
[1725822876207,0.733982,54612.0,54611.0,0.00911266]
[1725822879079,0.76269171,54612.0,54611.0,0.00911266]
[1725822880149,0.76269171,54612.0,54611.0,0.09001266]
[1725822880399,0.733982,54612.0,54611.0,0.09001266]
[1725822880631,0.733982,54612.0,54611.0,0.09979222]
[1725822882896,0.84399919,54612.0,54611.0,0.09979222]
[1725822883104,0.84400492,54612.0,54611.0,0.09979222]
[1725822883349,0.84400492,54612.0,54611.0,0.09001266]
[1725822888367,0.81649921,54612.0,54611.0,0.09001266]
[1725822888572,0.733982,54612.0,54611.0,0.09979174]
[1725822888852,0.81650061,54612.0,54611.0,0.09979174]
[1725822889301,0.733982,54612.0,54611.0,0.09979174]
[1725822889520,0.81650086,54612.0,54611.0,0.09979174]
[1725822889735,0.84400492,54612.0,54611.0,0.09979174]
[1725822892787,0.71225836,54612.0,54611.0,0.09979174]
[1725822900871,0.41928336,54612.0,54611.0,0.09979174]
[1725822901088,0.000815,54612.0,54611.0,0.19859174]
[1725822901292,0.000815,54612.0,54611.0,0.21938091]
[1725822901547,0.000815,54612.0,54611.0,0.22438091]
[1725822902646,0.05583435,54612.0,54611.0,0.22438091]
[1725822902864,0.05583435,54612.0,54611.0,0.20359174]
[1725822906728,0.05583317,54612.0,54611.0,0.20359174]
[1725822909106,0.05583317,54612.0,54611.0,0.35008174]
[1725822910788,0.05583317,54612.0,54611.0,0.20359174]
[1725822911239,0.05583317,54612.0,54611.0,0.22360669]
[1725822914484,0.05583317,54612.0,54611.0,0.20359174]
[1725822920077,0.05583317,54612.0,54611.0,0.40718348]
[1725822920721,0.000815,54612.0,54611.0,0.40718348]
[1725822920948,0.05583623,54612.0,54611.0,0.40718348]
[1725822921404,0.000815,54612.0,54611.0,0.40718348]
[1725822930932,0.08334727,54612.0,54611.0,0.40718348]
[1725822932108,0.000815,54612.0,54611.0,0.42987584]
[1725822936154,0.000815,54612.0,54611.0,0.57636584]
[1725822937307,0.000815,54612.0,54611.0,0.55367348]
[1725822937539,0.000815,54612.0,54611.0,0.84665448]
[1725822938232,0.000815,54612.0,54611.0,0.55367348]
[1725822939143,0.001815,54612.0,54611.0,0.54819082]
[1725822940123,0.002815,54612.0,54611.0,0.55519082]
[1725822940361,0.08435479,54612.0,54611.0,0.40170082]
[1725822940588,0.08335479,54612.0,54611.0,0.39970082]
[1725822940807,0.08535479,54612.0,54611.0,0.42070082]
[1725822941028,0.08535479,54612.0,54611.0,0.41170082]
[1725822941261,0.08635479,54612.0,54611.0,0.42070082]
[1725822941701,0.08636718,54612.0,54611.0,0.42070082]
[1725822942161,0.08336718,54612.0,54611.0,0.39970082]
[1725822942382,0.08436718,54612.0,54611.0,0.40896691]
[1725822942989,0.08336718,54612.0,54611.0,0.39996691]
[1725822943159,0.08336718,54612.0,54611.0,0.40396691]
[1725822943577,0.08436718,54612.0,54611.0,0.41096691]
[1725822943793,0.08336718,54612.0,54611.0,0.39996691]
[1725822944007,0.08336718,54612.0,54611.0,0.40396691]
[1725822944205,0.08336718,54612.0,54611.0,0.40696691]
[1725822947151,0.08338621,54612.0,54611.0,0.40696691]
[1725822947596,0.22987321,54612.0,54611.0,0.40696691]
[1725822947816,0.08338621,54612.0,54611.0,0.40696691]
[1725822948293,0.05586242,54612.0,54611.0,0.40696691]
[1725822949821,0.05586242,54612.0,54611.0,0.39996691]
[1725822950037,0.05586242,54612.0,54611.0,0.40396691]
[1725822950642,0.05586242,54612.0,54611.0,0.40296691]
[1725822951076,0.05586242,54612.0,54611.0,0.39996691]
[1725822951282,0.05686242,54612.0,54611.0,0.40696691]
[1725822951499,0.05786242,54612.0,54611.0,0.41396691]
[1725822951937,0.05785747,54612.0,54611.0,0.41396691]
[1725822954144,1.069827,54612.0,54611.0,0.22926691]
[1725822955665,0.776852,54612.0,54611.0,0.22926691]
[1725822956096,0.776852,54612.0,54611.0,0.21948783]
[1725822956317,0.776852,54612.0,54611.0,0.23118593]
[1725822957395,0.91442267,54612.0,54611.0,0.23118593]
[1725822957606,0.87282267,54612.0,54611.0,0.23118593]
[1725822958968,0.78662631,54612.0,54611.0,0.23118593]
[1725822960505,0.70408919,54612.0,54611.0,0.23118593]
[1725822960712,0.78662631,54612.0,54611.0,0.23118593]
[1725822960919,0.70408919,54612.0,54611.0,0.23118593]
[1725822961865,0.78662631,54612.0,54611.0,0.23118593]
[1725822962102,0.88662631,54612.0,54611.0,0.23118593]
[1725822965271,0.8866043,54612.0,54611.0,0.23118593]
[1725822966834,0.8874193,54612.0,54611.0,0.23118593]
[1725822967552,0.80490419,54612.0,54611.0,0.23118593]
[1725822969101,0.91492434,54612.0,54611.0,0.23118593]
[1725822969378,0.91492434,54612.0,54611.0,0.21948783]
[1725822969801,0.91492434,54612.0,54611.0,0.23119168]
[1725822970026,0.91492434,54612.0,54611.0,0.40839168]
[1725822970267,0.91492434,54612.0,54611.0,0.39668783]
[1725822970543,0.91492434,54612.0,54611.0,0.40839168]
[1725822970982,0.91492434,54612.0,54611.0,0.20479994]
[1725822971700,0.18330919,54612.0,54611.0,0.31859058]
[1725822971869,0.100815,54612.0,54611.0,0.31859058]
[1725822972536,0.100815,54612.0,54611.0,0.29761059]
[1725822973014,0.100815,54612.0,54611.0,0.44410059]
[1725822973015,0.000815,54612.0,54611.0,0.44410059]
[1725822982671,0.000815,54612.0,54611.0,0.64769233]
[1725822983584,0.000815,54612.0,54611.0,0.50120233]
[1725822983829,0.000815,54612.0,54611.0,0.41339168]
[1725822988276,0.0276881,54612.0,54611.0,0.41339168]
[1725822989190,0.000815,54612.0,54611.0,0.41339168]
[1725822991569,0.02749008,54613.0,54612.0,0.0268731]
[1725822991710,0.20147438,54614.0,54612.0,0.0268731]
[1725822992073,0.20147438,54614.0,54612.0,0.03857226]
[1725822992331,0.146485,54613.0,54612.0,0.03857226]
[1725822992547,0.146485,54613.0,54612.0,0.04357226]
[1725822994053,0.146485,54613.0,54612.0,0.04757226]
[1725822994805,0.78841538,54613.0,54612.0,0.04857226]